fUSD/lending_fUSD_20260107
["ID","MTS","AMOUNT","RATE_DAILY","PERIOD"]
[400722078,1767796994883,10000.01,0.00015325,2]
[400722079,1767796995570,-477.58526062,0.00015325,2]
[400722080,1767797002120,-421.75076159,0.00015325,2]
[400722081,1767797004551,-169.92921408,0.00015325,2]
[400722082,1767797006545,-166.67037824,0.00015325,2]
[400722083,1767797009007,-174.42241913,0.00015325,2]
[400722084,1767797010027,-168.42467707,0.00015248,2]
[400722085,1767797012774,-287.17334878,0.00015248,2]
[400722086,1767797016405,-189.13364541,0.00015248,2]
[400722087,1767797019723,-582.57868296,0.00015118,2]
[400722088,1767797021828,-215.56679287,0.00015118,2]
[400722089,1767797023540,-301.85452417,0.00015118,2]
[400722090,1767797023563,-14.08537977,0.00015118,2]
[400722091,1767797024951,-241.65238321,0.00015118,2]
[400722092,1767797025643,-844.26223702,0.00015118,2]
[400722093,1767797025665,-2905.17881474,0.00015248,2]
[400722094,1767797025687,-1100.0,0.00015297,2]
[400722095,1767797025711,-558150.55894824,0.00015325,2]
[400722096,1767797033319,1115.94903288,0.00015324,5]
[400722097,1767797035846,663.09,0.00015315,3]
[400722099,1767797048164,1000.0,0.00032876,120]
[400722101,1767797060629,257.57,0.00015029,2]
[400722102,1767797070078,-317.65263784,0.00015325,2]
[400722103,1767797071646,-352.56037373,0.00015325,2]
[400722104,1767797075135,-289.30237687,0.00015324,2]
[400722105,1767797076512,-210.69762313,0.00015324,2]
[400722106,1767797076541,-100.39170641,0.00015324,2]
[400722107,1767797079084,-399.60829359,0.00015324,2]
[400722108,1767797079111,-100.39170641,0.00015324,2]
[400722109,1767797080718,-363.36822854,0.00015324,2]
[400722110,1767797084619,-36.24006505,0.00015324,2]
[400722111,1767797084655,-500.0,0.00015324,2]
[400722112,1767797084689,-500.0,0.00015324,2]
[400722113,1767797084726,-500.0,0.00015324,2]
[400722114,1767797084761,-500.0,0.00015324,2]
[400722115,1767797084795,-500.0,0.00015324,2]
[400722116,1767797084832,-500.0,0.00015324,2]
[400722117,1767797084870,-500.0,0.00015324,2]
[400722118,1767797084907,-500.0,0.00015324,2]
[400722119,1767797084942,-500.0,0.00015324,2]
[400722120,1767797084978,-427.5298699,0.00015324,2]
[400722121,1767797085134,-3189.882922,0.00015248,2]
[400722122,1767797085173,-72.4701301,0.00015324,2]
[400722123,1767797085208,-500.0,0.00015324,2]
[400722124,1767797085245,-500.0,0.00015324,2]
[400722125,1767797085280,-500.0,0.00015324,2]
[400722126,1767797085327,-233.77956632,0.00015324,2]
[400722127,1767797085452,-177.00021117,0.00015324,2]
[400722128,1767797088550,-322.99978883,0.00015324,2]
[400722129,1767797088578,-177.00021117,0.00015324,2]
[400722130,1767797089674,-322.99978883,0.00015324,2]
[400722131,1767797093913,-500.0,0.00015324,2]
[400722132,1767797095928,-500.0,0.00015324,2]
[400722133,1767797097094,-500.0,0.00015324,2]
[400722134,1767797097120,-463.338813,0.00015324,2]
[400722135,1767797098758,-36.661187,0.00015324,2]
[400722136,1767797098785,-463.338813,0.00015324,2]
[400722137,1767797100837,-36.661187,0.00015324,2]
[400722138,1767797100869,-184.33692249,0.00015324,2]
[400722139,1767797102336,-282.78925076,0.00015323,2]
[400722140,1767797104793,-17.21074924,0.00015323,2]
[400722141,1767797104818,-157.08478002,0.00015323,2]
[400722142,1767797106698,-300.0,0.00015323,2]
[400722143,1767797107439,-742.91521998,0.00015323,2]
[400722144,1767797107480,-315.66307751,0.00015324,2]
[400722145,1767797107519,-500.0,0.00015324,2]
[400722146,1767797107558,-500.0,0.00015324,2]
[400722147,1767797107597,-500.0,0.00015324,2]
[400722148,1767797107637,-500.0,0.00015324,2]
[400722149,1767797107677,-500.0,0.00015324,2]
[400722150,1767797107715,-500.0,0.00015324,2]
[400722151,1767797107753,-500.0,0.00015324,2]
[400722152,1767797107791,-233.77956631,0.00015324,2]
[400722153,1767797107822,-141.38796184,0.00015324,2]
[400722154,1767797108926,-132.51834872,0.00015324,2]
[400722155,1767797108950,-125.79058479,0.00015324,2]
[400722156,1767797110721,-174.20941521,0.00015324,2]
[400722157,1767797111063,-40.6926901,0.00015325,2]
[400722158,1767797112636,1000.0,0.00014995,2]
[400722159,1767797113098,-300.0,0.00015325,2]
[400722160,1767797117234,-500.0,0.00015325,2]
[400722161,1767797119499,-200.0,0.00015325,2]
[400722162,1767797123145,-500.0,0.00015325,2]
[400722163,1767797127825,-348.34211338,0.00015325,2]
[400722164,1767797131093,-500.0,0.00015324,2]
[400722165,1767797131620,-475.82894331,0.00015325,2]
[400722166,1767797135464,-255.0,0.00015325,2]
[400722167,1767797138926,-500.0,0.00015325,2]
[400722168,1767797144353,-500.0,0.00015325,2]
[400722169,1767797149260,-500.0,0.00015325,2]
[400722170,1767797152457,-536.661187,0.00015325,2]
[400722171,1767797156251,-500.0,0.00015325,2]
[400722172,1767797157953,-500.0,0.00015325,2]
[400722173,1767797159645,-500.0,0.00015325,2]
[400722174,1767797163070,-200.0,0.00015325,2]
[400722175,1767797165907,-500.0,0.00015248,2]
[400722176,1767797166330,2371.19211347,0.000328,120]
[400722177,1767797170340,-500.0,0.00015248,2]
[400722178,1767797173346,-500.0,0.00015248,2]
[400722179,1767797174847,-188.929543,0.00015248,2]
[400722180,1767797174878,-166.82761257,0.00015324,2]
[400722181,1767797177080,-219.54633894,0.00015324,2]
[400722182,1767797177108,-27.65366106,0.00015325,2]
[400722183,1767797180059,-500.0,0.00015325,2]
[400722184,1767797182085,440.83,0.00014976,2]
[400722185,1767797184136,-500.0,0.00015325,2]
[400722186,1767797186605,-500.0,0.00015325,2]
[400722187,1767797187970,-500.0,0.00015325,2]
[400722188,1767797194398,-500.0,0.00015324,2]
[400722189,1767797196295,-500.0,0.00015325,2]
[400722190,1767797200432,-223.4736911,0.00015325,2]
[400722191,1767797203364,-448.35695514,0.00015325,2]
[400722192,1767797212553,-154.74431651,0.00015324,2]
[400722193,1767797213988,-345.25568349,0.00015324,2]
[400722194,1767797214019,-154.74431651,0.00015325,2]
[400722195,1767797214812,-1350.0,0.000209,30]
[400722196,1767797215584,-317.8102,0.00015325,2]
[400722197,1767797221548,-349.05868415,0.00015325,2]
[400722198,1767797225941,-191.37810671,0.00015325,2]
[400722199,1767797230140,-500.0,0.00015325,2]
[400722200,1767797232849,-403.1375819,0.00015325,2]
[400722201,1767797235952,-214.88273804,0.00015225,2]
[400722202,1767797238305,-446.03289329,0.00015225,2]
[400722203,1767797239434,-351.64304486,0.00015225,2]
[400722204,1767797242183,-292.43511023,0.00015225,2]
[400722205,1767797245208,-115.59512052,0.00015225,2]
[400722206,1767797245240,-389.33480846,0.00015325,2]
[400722207,1767797246421,-500.0,0.00015325,2]
[400722208,1767797249092,-472.55451651,0.00015325,2]
[400722209,1767797250542,-236.53913856,0.00015325,2]
[400722210,1767797254281,-176.13498878,0.00015225,2]
[400722211,1767797254311,-318.93508224,0.00015325,2]
[400722212,1767797257519,-500.0,0.00015324,2]
[400722213,1767797259535,-500.0,0.00015325,2]
[400722214,1767797261185,-494.45,0.00015325,2]
[400722215,1767797263500,-287.45422444,0.00015325,2]
[400722216,1767797265950,-500.0,0.00015325,2]
[400722217,1767797267299,-300.0,0.00015325,2]
[400722218,1767797269365,-200.0,0.00015225,2]
[400722219,1767797270797,-188.81615301,0.00015225,2]
[400722220,1767797273444,180.27274157,0.00029381,120]
[400722221,1767797273648,-317.8102,0.00015225,2]
[400722222,1767797273673,-1182.63347286,0.00015225,2]
[400722223,1767797273702,-329996.60119579,0.00015325,2]
[400722224,1767797273726,-2455.0207,0.00015325,2]
[400722225,1767797273749,-18843.5408,0.00015325,2]
[400722226,1767797273773,-334.51331102,0.00015325,2]
[400722227,1767797273798,-195.0,0.00015325,2]
[400722228,1767797273821,-1000.0,0.00015326,2]
[400722229,1767797273846,-2500.0,0.00015326,2]
[400722230,1767797273869,-200.0,0.00015417,2]
[400722231,1767797273893,-200.0,0.00015417,2]
[400722232,1767797273917,-500.0,0.00015417,2]
[400722233,1767797273943,-151.0,0.00015417,2]
[400722234,1767797273969,-151.0,0.00015417,2]
[400722235,1767797273994,-151.0,0.00015417,2]
[400722236,1767797274022,-151.0,0.00015417,2]
[400722237,1767797274049,-151.0,0.00015417,2]
[400722238,1767797274074,-151.0,0.00015417,2]
[400722239,1767797274099,-151.0,0.00015417,2]
[400722240,1767797274126,-151.0,0.00015417,2]
[400722241,1767797274153,-151.0,0.00015417,2]
[400722242,1767797274180,-151.0,0.00015417,2]
[400722243,1767797274207,-151.0,0.00015417,2]
[400722244,1767797274233,-154.57,0.00015425,2]
[400722245,1767797274259,-537.05653843,0.00015425,2]
[400722246,1767797274285,-195.0,0.0001544,2]
[400722247,1767797274741,-500.0,0.00015525,2]
[400722248,1767797274769,-500.0,0.00015525,2]
[400722249,1767797274794,-500.0,0.00015525,2]
[400722250,1767797274820,-500.0,0.00015525,2]
[400722251,1767797274844,-500.0,0.00015525,2]
[400722252,1767797274870,-500.0,0.00015525,2]
[400722253,1767797274895,-500.0,0.00015525,2]
[400722254,1767797274923,-500.0,0.00015525,2]
[400722255,1767797274948,-610.79386728,0.00015525,2]
[400722256,1767797274974,-514.71165586,0.00015525,2]
[400722257,1767797274998,-530.37627741,0.00015525,2]
[400722258,1767797275026,-415.0,0.000156,2]
[400722259,1767797275052,-161.0,0.000156,2]
[400722260,1767797275077,-1420.58890689,0.00015607,2]
[400722261,1767797275107,-580.31842491,0.00015679,2]
[400722262,1767797275133,-500.0,0.00015679,2]
[400722263,1767797275158,-500.0,0.00015679,2]
[400722264,1767797275185,-500.0,0.00015679,2]
[400722265,1767797275210,-500.0,0.00015679,2]
[400722266,1767797275236,-500.0,0.00015679,2]
[400722267,1767797275261,-500.0,0.00015679,2]
[400722268,1767797275287,-502.28702111,0.00015679,2]
[400722269,1767797275313,-9999.99,0.00015699,2]
[400722270,1767797275338,-1534.06,0.00015699,2]
[400722271,1767797275364,-1218.04,0.00015699,2]
[400722272,1767797275389,-221.0,0.00015699,2]
[400722273,1767797275417,-3266.545824,0.00015699,2]
[400722274,1767797275445,-16222.58107519,0.000157,2]
[400722275,1767797275470,-13963.16,0.000157,2]
[400722276,1767797275494,-13349.41,0.000157,2]
[400722277,1767797275519,-9999.99,0.000157,2]
[400722278,1767797275550,-999.99,0.000157,2]
[400722279,1767797275596,-57217.41072925,0.000157,2]
[400722281,1767797302547,-1800.02869699,0.00015225,2]
[400722282,1767797304560,-500.0,0.00015225,2]
[400722283,1767797307222,-220.82894331,0.00015225,2]
[400722284,1767797310005,-292.85647842,0.00015225,2]
[400722285,1767797311942,-207.14352158,0.00015225,2]
[400722286,1767797315593,-500.0,0.00015224,2]
[400722287,1767797318066,-350.0,0.00015224,2]
[400722288,1767797319896,-19.83967717,0.00015224,2]
[400722289,1767797319920,-500.0,0.00015224,2]
[400722290,1767797319948,-124.09712178,0.00015224,2]
[400722291,1767797321751,-111.89443947,0.00015224,2]
[400722292,1767797322173,-185.30556053,0.00015224,2]
[400722293,1767797324632,-308.8044206,0.00015224,2]
[400722294,1767797324659,-191.1955794,0.00015224,2]
[400722295,1767797326637,-278.83699554,0.00015224,2]
[400722296,1767797326665,-21.16300446,0.00015224,2]
[400722297,1767797328638,-202.8,0.00015224,2]
[400722298,1767797330722,-276.03699554,0.00015224,2]
[400722299,1767797330750,-223.96300446,0.00015224,2]
[400722300,1767797334158,-276.03699554,0.00015224,2]
[400722301,1767797334186,-86.58513831,0.00015224,2]
[400722302,1767797336679,-243.14365421,0.00015224,2]
[400722303,1767797336704,-256.85634579,0.00015224,2]
[400722304,1767797338327,-243.14365421,0.00015224,2]
[400722305,1767797338350,-16.61118496,0.00015224,2]
[400722306,1767797341708,-302.97877102,0.00015224,2]
[400722307,1767797341732,-197.02122898,0.00015224,2]
[400722308,1767797343413,-302.97877102,0.00015224,2]
[400722309,1767797343438,-197.02122898,0.00015224,2]
[400722310,1767797345514,-227.44548349,0.00015224,2]
[400722311,1767797351215,-75.53328753,0.00015224,2]
[400722312,1767797351242,-269.46671247,0.00015225,2]
[400722313,1767797354371,-256.68249628,0.00015125,2]
[400722314,1767797354398,-143.31750372,0.00015225,2]
[400722315,1767797358356,-300.0,0.00015175,2]
[400722316,1767797362397,-200.0,0.00015175,2]
[400722318,1767797364828,-100.0,0.00015175,2]
[400722319,1767797364855,-200.0,0.00015225,2]
[400722320,1767797367904,-255.0,0.00015225,2]
[400722321,1767797370471,-203.47856656,0.00015225,2]
[400722322,1767797373040,-500.0,0.00015225,2]
[400722323,1767797376086,-203.478566,0.00015148,2]
[400722324,1767797376114,-259.860247,0.00015225,2]
[400722325,1767797379612,-300.0,0.00015225,2]
[400722326,1767797381237,-163.03761056,0.00015225,2]
[400722327,1767797384677,-153.29764947,0.00015225,2]
[400722328,1767797386177,-235.66563197,0.00015225,2]
[400722329,1767797387723,-320.70628854,0.00015225,2]
[400722330,1767797388898,-993975.31214941,0.00015225,2]
[400722331,1767797388923,-972.5546,0.00015225,2]
[400722332,1767797388947,-495.16589767,0.00015279,2]
[400722333,1767797388973,-214.50367231,0.00015334,2]
[400722334,1767797389368,-247.43962627,0.00015334,2]
[400722335,1767797391526,-176.13498879,0.00015334,2]
[400722336,1767797426863,500.0,0.00015057,2]
[400722353,1767797432318,-300.0,0.00015333,2]
[400722354,1767797432327,-1200.0,0.00015333,2]
[400722355,1767797432336,-167.79948137,0.00015333,2]
[400722356,1767797432393,-110.20051863,0.00015333,2]
[400722357,1767797432402,-195.0,0.00015333,2]
[400722358,1767797432411,-13937.24171263,0.00015334,2]
[400722359,1767797432421,-500.0,0.00015425,2]
[400722360,1767797432432,-500.0,0.00015425,2]
[400722361,1767797432442,-256.68249628,0.0001544,2]
[400722362,1767797432451,-25840.87527155,0.00015599,2]
[400722363,1767797432463,-4960.39554792,0.00015599,2]
[400722364,1767797432472,-127647.6932714,0.00015678,2]
[400722365,1767797432481,-300.0,0.00015699,2]
[400722366,1767797432490,-300.0,0.00015699,2]
[400722367,1767797432501,-42324.08927075,0.000157,2]
[400722368,1767797432510,-744.27,0.000157,2]
[400722369,1767797432519,-4999.99,0.000157,2]
[400722370,1767797432529,-990.9,0.00015736,2]
[400722371,1767797432538,-9999.99,0.00015736,2]
[400722372,1767797432548,-299.99,0.00015736,2]
[400722373,1767797432557,-256.68249628,0.00015755,2]
[400722374,1767797432567,-500.0,0.00015778,2]
[400722375,1767797432577,-500.0,0.00015778,2]
[400722376,1767797432586,-500.0,0.00015778,2]
[400722377,1767797432596,-500.0,0.00015778,2]
[400722378,1767797432606,-9999.99,0.00015779,2]
[400722379,1767797432615,-150.99,0.00015779,2]
[400722380,1767797432626,-3687.07,0.00015779,2]
[400722381,1767797432636,-12850.13319147,0.00015779,2]
[400722382,1767797432647,-12799.75680853,0.00015779,2]
[400722383,1767797432657,-1465.39,0.00015779,2]
[400722384,1767797432666,-5934.3676805,0.00015779,2]
[400722385,1767797432679,-11600.6123195,0.00015779,2]
[400722386,1767797432688,-529.93,0.00015779,2]
[400722387,1767797432697,-150.99,0.00015779,2]
[400722388,1767797432707,-3174.75,0.00015779,2]
[400722389,1767797432717,-1178.51,0.00015779,2]
[400722390,1767797432726,-2095.06,0.00015779,2]
[400722391,1767797432735,-9999.99,0.00015779,2]
[400722392,1767797432744,-9999.99,0.00015779,2]
[400722393,1767797432753,-499.99,0.00015779,2]
[400722394,1767797432762,-1326.41,0.00015779,2]
[400722395,1767797432771,-36891.59080416,0.0001583,2]
[400722396,1767797432783,-1110.84652,0.0001583,2]
[400722425,1767797438422,-46783.67406788,0.0001583,2]
[400722426,1767797438434,-30801.2708194,0.00015855,2]
[400722427,1767797438446,-500.0,0.00015897,2]
[400722429,1767797438458,-265.87,0.00015922,2]
[400722431,1767797438470,-200.0,0.00015965,2]
[400722433,1767797438482,-500.0,0.00015965,2]
[400722435,1767797438494,-1326.41,0.00016053,2]
[400722438,1767797438506,-1100.0,0.00016102,2]
[400722440,1767797438517,-30801.2708194,0.0001611,2]
[400722442,1767797438529,-9999.99,0.00016116,2]
[400722444,1767797438541,-999.0,0.00016164,3]
[400722446,1767797438553,-503.51722906,0.00016249,2]
[400722449,1767797438567,-500.0,0.00016249,2]
[400722451,1767797438578,-500.0,0.00016249,2]
[400722453,1767797438590,-500.0,0.00016249,2]
[400722455,1767797438602,-500.0,0.00016249,2]
[400722457,1767797438614,-476.0,0.00016252,2]
[400722459,1767797438625,-476.0,0.00016258,2]
[400722462,1767797438637,-328.22,0.00016323,2]
[400722464,1767797438654,-1326.41,0.00016327,2]
[400722466,1767797438667,-30801.2708194,0.00016366,2]
[400722469,1767797438680,-500.0,0.00016437,2]
[400722471,1767797438694,-276.34900722,0.00016438,2]
[400722473,1767797438706,-500.0,0.00016438,2]
[400722475,1767797438718,-250.0,0.00016438,3]
[400722477,1767797438731,-2370.62412045,0.00016442,2]
[400722480,1767797438743,-659.3,0.00016444,2]
[400722482,1767797438754,-990.9,0.00016485,2]
[400722484,1767797438766,-152.0,0.00016512,2]
[400722485,1767797438777,-152.0,0.00016512,2]
[400722487,1767797438790,-500.0,0.00016513,2]
[400722489,1767797438801,-1326.41,0.00016601,2]
[400722492,1767797438813,-30801.2708194,0.00016622,2]
[400722494,1767797438824,-1999.52527881,0.00016622,2]
[400722496,1767797438836,-250.0,0.00016638,2]
[400722498,1767797438847,-300.0,0.00016638,2]
[400722501,1767797438859,-2500.0,0.00016638,2]
[400722503,1767797438871,-193.0,0.00016638,2]
[400722505,1767797438883,-151.0,0.00016661,2]
[400722507,1767797438894,-151.0,0.00016661,2]
[400722509,1767797438906,-151.0,0.00016664,2]
[400722512,1767797438916,-150.0,0.0001667,2]
[400722514,1767797438928,-151.0,0.0001667,2]
[400722516,1767797438942,-151.0,0.0001667,2]
[400722518,1767797438954,-168.0,0.00016673,2]
[400722521,1767797438968,-151.0,0.00016689,2]
[400722523,1767797438980,-151.0,0.00016689,2]
[400722525,1767797438991,-300.0,0.00016692,2]
[400722527,1767797439004,-200.0,0.00016718,2]
[400722529,1767797439016,-56824.84,0.00016718,2]
[400722532,1767797439028,-5545.36015673,0.00016738,2]
[400722534,1767797439041,-265.87,0.0001676,2]
[400722536,1767797439053,-420.0,0.00016775,2]
[400722539,1767797439065,-500.0,0.00016795,2]
[400722541,1767797439076,-500.0,0.00016797,2]
[400722543,1767797439088,-500.0,0.00016799,2]
[400722545,1767797439102,-258.58725296,0.00016799,2]
[400722548,1767797439114,-500.0,0.00016799,2]
[400722550,1767797439126,-500.0,0.00016824,2]
[400722552,1767797439137,-500.0,0.00016824,2]
[400722554,1767797439148,-1500.0,0.00016824,2]
[400722556,1767797439160,-500.0,0.00016824,2]
[400722558,1767797439172,-1500.0,0.00016824,2]
[400722560,1767797439183,-500.0,0.00016824,2]
[400722562,1767797439196,-1500.0,0.00016824,2]
[400722565,1767797439208,-500.0,0.00016824,2]
[400722567,1767797439219,-1457.13206838,0.00016824,2]
[400722569,1767797439231,-500.0,0.00016824,2]
[400722571,1767797439243,-500.0,0.00016824,2]
[400722573,1767797439257,-500.0,0.00016824,2]
[400722575,1767797439268,-500.0,0.00016824,2]
[400722577,1767797439281,-500.0,0.00016824,2]
[400722580,1767797439292,-500.0,0.00016824,2]
[400722582,1767797439304,-500.0,0.00016824,2]
[400722584,1767797439316,-500.0,0.00016824,2]
[400722586,1767797439328,-574.12855637,0.00016824,2]
[400722588,1767797439339,-743.29710594,0.00016824,2]
[400722591,1767797439351,-500.0,0.00016824,2]
[400722593,1767797439362,-500.0,0.00016824,2]
[400722595,1767797439374,-500.0,0.00016824,2]
[400722597,1767797439385,-500.0,0.00016824,2]
[400722599,1767797439397,-500.0,0.00016824,2]
[400722602,1767797439408,-500.0,0.00016824,2]
[400722604,1767797439420,-327.23086226,0.00016824,2]
[400722606,1767797439431,-2000.0,0.00016824,2]
[400722608,1767797439445,-2000.0,0.00016824,2]
[400722610,1767797439457,-2000.0,0.00016824,2]
[400722613,1767797439469,-200.0,0.00016824,2]
[400722615,1767797439482,-207.4,0.00016824,2]
[400722617,1767797439493,-2000.0,0.00016824,2]
[400722619,1767797439504,-215.0738,0.00016824,2]
[400722621,1767797439515,-2000.0,0.00016824,2]
[400722624,1767797439527,-223.0315306,0.00016824,2]
[400722626,1767797439538,-2000.0,0.00016824,2]
[400722628,1767797439549,-231.28369723,0.00016824,2]
[400722630,1767797439561,-2000.0,0.00016824,2]
[400722632,1767797439573,-239.84119403,0.00016824,2]
[400722635,1767797439584,-248.71531821,0.00016824,2]
[400722637,1767797439595,-257.91778498,0.00016824,2]
[400722641,1767797439607,-267.46074303,0.00016824,2]
[400722643,1767797439619,-277.35679052,0.00016824,2]
[400722645,1767797439630,-250.0,0.00016824,2]
[400722648,1767797439641,-250.0,0.00016824,2]
[400722650,1767797439652,-250.0,0.00016824,2]
[400722652,1767797439663,-250.0,0.00016824,2]
[400722654,1767797439674,-250.0,0.00016824,2]
[400722656,1767797439686,-250.0,0.00016824,2]
[400722658,1767797439697,-250.0,0.00016824,2]
[400722661,1767797439708,-250.0,0.00016824,2]
[400722663,1767797439719,-250.0,0.00016824,2]
[400722665,1767797439730,-250.0,0.00016824,2]
[400722667,1767797439741,-250.0,0.00016824,2]
[400722669,1767797439752,-510.0,0.00016829,2]
[400722672,1767797439763,-250.0,0.00016837,2]
[400722674,1767797439778,-440.83,0.00016848,2]
[400722676,1767797439789,-250.0,0.00016857,2]
[400722678,1767797439801,-300.0,0.00016857,2]
[400722680,1767797439812,-1680.0,0.0001686,2]
[400722683,1767797439823,-300.0,0.00016866,2]
[400722685,1767797439834,-195.0,0.00016866,2]
[400722687,1767797439844,-152.10889041,0.00016866,2]
[400722689,1767797439855,-300.0,0.00016866,2]
[400722691,1767797439865,-5000.0,0.00016866,2]
[400722693,1767797439876,-5000.0,0.00016866,2]
[400722696,1767797439888,-4685.70338709,0.00016866,2]
[400722698,1767797439899,-600.0,0.00016866,2]
[400722700,1767797439909,-600.0,0.00016866,2]
[400722702,1767797439920,-600.0,0.00016866,2]
[400722704,1767797439932,-600.0,0.00016866,2]
[400722707,1767797439943,-320.97403321,0.00016866,2]
[400722709,1767797439954,-1000.0,0.00016869,2]
[400722711,1767797439968,-1326.41,0.00016875,2]
[400722713,1767797439979,-30801.2708194,0.00016877,2]
[400722715,1767797439990,-1100.0,0.0001695,2]
[400722718,1767797440003,-250.0,0.00016986,3]
[400722720,1767797440014,-250.0,0.00017,2]
[400722722,1767797440026,-500.0,0.00017061,2]
[400722724,1767797440039,-506.85863405,0.00017071,2]
[400722726,1767797440050,-500.0,0.00017092,2]
[400722728,1767797440061,-168.0,0.00017103,2]
[400722731,1767797440074,-622.34472307,0.00017116,2]
[400722733,1767797440084,-515.19409288,0.00017132,2]
[400722735,1767797440095,-258.88777402,0.00017132,2]
[400722737,1767797440106,-500.0,0.00017132,2]
[400722740,1767797440117,-329.02280246,0.00017132,2]
[400722742,1767797440127,-500.0,0.00017132,2]
[400722744,1767797440137,-500.0,0.00017132,2]
[400722746,1767797440148,-469.58995598,0.00017132,2]
[400722748,1767797440159,-30801.2708194,0.00017133,2]
[400722750,1767797440170,-1326.41,0.00017148,2]
[400722752,1767797440181,-178.0,0.00017186,2]
[400722755,1767797440194,-990.9,0.00017234,2]
[400722757,1767797440205,-150.0,0.00017242,2]
[400722759,1767797440216,-1090.62620329,0.00017242,2]
[400722761,1767797440227,-178.0,0.00017248,2]
[400722763,1767797440238,-250.0,0.00017269,2]
[400722765,1767797440248,-300.0,0.00017269,2]
[400722768,1767797440259,-195.0,0.0001727,2]
[400722770,1767797440270,-622.34472307,0.00017312,2]
[400722772,1767797440281,-595.37131296,0.00017372,2]
[400722774,1767797440293,-30801.2708194,0.00017389,2]
[400722776,1767797440303,-419.33594592,0.00017418,2]
[400722778,1767797440314,-1326.41,0.00017422,2]
[400722781,1767797440324,-245.0,0.00017507,2]
[400722783,1767797440334,-622.34472307,0.00017508,2]
[400722785,1767797440345,-178.0,0.0001755,2]
[400722787,1767797440355,-500.0,0.00017593,2]
[400722789,1767797440366,-169.74559645,0.00017594,2]
[400722791,1767797440376,-175.21486475,0.00017594,2]
[400722793,1767797440387,-536.66734105,0.00017594,2]
[400722796,1767797440399,-500.0,0.00017594,2]
[400722798,1767797440410,-500.0,0.00017594,2]
[400722800,1767797440420,-500.0,0.00017594,2]
[400722802,1767797440432,-500.0,0.00017594,2]
[400722805,1767797440449,-500.0,0.00017594,2]
[400722807,1767797440460,-500.0,0.00017594,2]
[400722809,1767797440471,-500.0,0.00017594,2]
[400722811,1767797440482,-500.0,0.00017594,2]
[400722813,1767797440494,-500.0,0.00017594,2]
[400722815,1767797440505,-500.0,0.00017594,2]
[400722817,1767797440515,-500.0,0.00017594,2]
[400722819,1767797440526,-224.66209336,0.00017594,2]
[400722822,1767797440537,-538.59757642,0.00017594,2]
[400722824,1767797440548,-500.0,0.00017594,2]
[400722826,1767797440559,-500.0,0.00017594,2]
[400722828,1767797440570,-165.31618738,0.00017594,2]
[400722829,1767797440580,-500.93985952,0.00017594,2]
[400722831,1767797440591,-500.0,0.00017594,2]
[400722833,1767797440602,-500.0,0.00017594,2]
[400722835,1767797440612,-500.0,0.00017594,2]
[400722837,1767797440623,-500.0,0.00017594,2]
[400722839,1767797440633,-500.0,0.00017594,2]
[400722841,1767797440644,-500.0,0.00017594,2]
[400722843,1767797440655,-500.0,0.00017594,2]
[400722845,1767797440665,-166.24303816,0.00017594,2]
[400722847,1767797440676,-163.2920989,0.00017594,2]
[400722849,1767797440688,-500.0,0.00017594,2]
[400722851,1767797440700,-500.0,0.00017594,2]
[400722853,1767797440710,-500.0,0.00017594,2]
[400722854,1767797440721,-500.0,0.00017594,2]
[400722856,1767797440731,-500.0,0.00017594,2]